{"text_format":"1","workbook":"xlsx","n_sheets":4,"sheets":["ТКП","1632-2021-3.4-КЖ ","1632-2021-3.4-КМ ","1632-2021-3.4-АР "],"not_rendered":{"charts":0,"images":0,"macros":1,"external_links":0,"defined_names":6,"comments":0,"pivot_tables":0},"unopened":[],"bounds":{"document_bytes":16777216,"sheet_cells":100000,"rows_first":2000,"rows_last":500,"rows_between":2000,"halvings":0,"cell_chars":16384,"cell_head_chars":4096},"cells_cut":0,"cells_raw":0,"read":"whole","date_system":"1900"}

{"sheet":"ТКП","index":0,"n_rows":20,"n_cols":5,"rows_kept":20,"cut":false,"hidden":false,"merged":[[0,0,0,1],[0,3,0,4],[1,0,1,1],[1,2,1,4],[2,0,2,1],[4,0,4,1],[5,0,5,1],[7,3,7,4],[15,3,15,4],[16,3,16,4]]}
[null,null,null,"Коммерческое предложение к Документации о закупке № ____"]
["Наименование закупки: ",null,"Выполнение комплекса работ по строительству здания Ангар ТМЦ на объекте «Терминал по перевалке минеральных удобрений в МТП Усть-Луга. Береговые объекты терминала» "]
["Исх. № ______________ от __.__.2025г."]
[]
["Наименование Участника:"]
["ИНН Участника "]
[]
["№ п/п","Наименование","Требование ","Предложение Участника, руб без НДС"]
[null,null,null,"Материалы","Работы"]
[1,"Выполнение комплекса работ","Объем и состав работ в соответствии с ТЗ"]
[2,"Итоговая стоимость строительно-монтажных работ:"]
["2.1","1632-2021-3.4-КЖ ",null,{"$f":"'1632-2021-3.4-КЖ '!I193","v":0},{"$f":"'1632-2021-3.4-КЖ '!G193","v":0}]
["2.2","1632-2021-3.4-КМ ",null,{"$f":"'1632-2021-3.4-КМ '!I233","v":0},{"$f":"'1632-2021-3.4-КМ '!G233","v":0}]
["2.3","1632-2021-3.4-АР ",null,{"$f":"'1632-2021-3.4-АР '!I142","v":0},{"$f":"'1632-2021-3.4-АР '!G142","v":0}]
[null,null,null,{"$f":"SUM(D10:D14)","v":0},{"$f":"SUM(E10:E14)","v":0}]
[3,"НДС",0.2,{"$f":"(D15+E15)*0.2","v":0}]
[4,"Итоговая стоимость СМР, руб с НДС",null,{"$f":"D15+E15+D16","v":0}]
[]
[]
["(Должность уполномоченного представителя Участника)",null,null,null,"(Подпись)"]

{"sheet":"1632-2021-3.4-КЖ ","index":1,"n_rows":193,"n_cols":14,"rows_kept":193,"cut":false,"hidden":false,"merged":[[8,2,8,6],[1,0,1,9],[4,0,4,9],[6,0,6,9],[7,0,7,9],[2,0,2,9],[5,0,5,9]]}
[]
["Терминал по перевалке минеральных удобрений в морском торговом порту Усть-Луга. Береговые объекты терминала"]
["(наименование стройки)"]
[]
["ЛОКАЛЬНАЯ СМЕТА № 1632-2021-3.4-КЖ_01.05.060-П-01-01"]
["(локальная смета)"]
["на Конструкции железобетонные, 07.06.060 Ангар для хранения ТМЦ (код SAP 01.05.019) код ГП 3.4"]
["(наименование работ и затрат, наименование объекта)"]
[null,"Основание:","1632-2021-3.4-КЖ",null,null,null,null,null,null,null,"","","",""]
[]
["№ п/п","Обоснование","Наименование работ и затрат","Ед. изм.","Кол-во","Цена за ед.измерения работ, руб. с НДС","Всего, стоимость работ,руб. с НДС","Цена за ед.измерения материалов, руб. с НДС","Всего, стоимость материалов, руб. с НДС","Итого, руб. с НДС"]
["1","2","3","4","5",6,7,8,9,10]
["Раздел 1. Земляные работы"]
["1","ТЕР01-01-003-08","Разработка грунта в отвал экскаваторами «драглайн» или «обратная лопата» с ковшом вместимостью: 0,65 (0,5-1) м3, группа грунтов  2","1000 м3 грунта",0.94557999999999998,null,null,null,null,{"$f":"G14+I14","v":0}]
["2","ТЕР01-01-013-08","Разработка грунта с погрузкой на автомобили-самосвалы экскаваторами с ковшом вместимостью: 0,65 (0,5-1) м3, группа грунтов  2","1000 м3 грунта",0.34239999999999998,null,null,null,null,{"$f":"G15+I15","v":0}]
[null,"408-0015","Щебень из природного камня для строительных работ марка: 800, фракция 20-40 мм","м3","0,04\n0,0137",null,null,null,null,0]
["3","ТЕР01-02-057-02","Разработка грунта вручную в траншеях глубиной до 2 м без креплений с откосами, группа грунтов: 2//подчистка дна котлована с выкидкой к ковшу экскаватора","100 м3 грунта",0.05,null,null,null,null,0]
["4","ТССЦпг-03-21-01-190","Перевозка грузов автомобилями-самосвалами грузоподъемностью 10 т, работающих вне карьера, на расстояние: до 190 км I класс груза","1 т груза",616.32000000000005,null,null,null,null,0]
["Обратная засыпка местным грунтом",null,null,null,null,null,null,null,null,0]
["5","ТЕР01-02-005-01","Уплотнение грунта пневматическими трамбовками, группа грунтов: 1-2","100 м3 уплотненного грунта",9.5058000000000007,null,null,null,null,0]
["6","ТЕР01-01-033-04","Засыпка траншей и котлованов с перемещением грунта до 5 м бульдозерами мощностью: 79 кВт (108 л.с.), группа грунтов 1","1000 м3 грунта",0.95057999999999998,null,null,null,null,0]
["Уплотнение основания по фундамент до к=0,98 (ОП п.12, л.1)",null,null,null,null,null,null,null,null,0]
["7","ТЕР01-02-001-06","Уплотнение грунта прицепными катками на пневмоколесном ходу 25 т на первый проход по одному следу при толщине слоя: 60 см\nСНиП III-8-76 прил. 3: грунт несвязный, К=0,98, 8 проходов\nОП п.13, л.3 п.4","1000 м3 уплотненного грунта",0.33900000000000002,null,null,null,null,0]
["К=6 (7 проходов) ПЗ=7 (ОЗП=7; ЭМ=7 к расх.; ЗПМ=7; МАТ=7 к расх.; ТЗ=7; ТЗМ=7)",null,null,null,null,null,null,null,null,0]
["8","ТЕР01-02-001-12","На каждый последующий проход по одному следу добавлять: к расценке 01-02-001-06\nК=7","1000 м3 уплотненного грунта",0.33900000000000002,null,null,null,null,0]
["Раздел 2. Фундамент ленточный (1632-2021-3.4-КЖ)",null,null,null,null,null,null,null,null,0]
["9","ТЕР08-01-002-02","Устройство основания под фундаменты: щебеночного","1 м3 основания",63.7,null,null,null,null,0]
[null,"411-0001","Вода","м3","0,15\n9,555",null,null,null,null,0]
["10","ТССЦ-408-0015","Щебень из природного камня для строительных работ марка: 800, фракция 20-40 мм","м3",82.81,null,null,null,null,0]
["11","ТЕР06-01-001-01","Устройство бетонной подготовки","100 м3 бетона, бутобетона и железобетона в деле",0.28299999999999997,null,null,null,null,0]
[null,"101-1668","Рогожа","м2","250\n70,75",null,null,null,null,0]
[null,"411-0001","Вода","м3","0,2\n0,0566",null,null,null,null,0]
["12","ТСЭМ-110053","Автобетоносмесители: 4 м3","маш.-ч",3.516,null,null,null,null,0]
["13","Прайс","Бетон тяжелый, класс: В7,5 (М100)","м3",28.866,null,null,null,null,0]
["14","ТЕР06-01-013-01","Устройство подливки толщиной  20 мм // подливка толщ. 80мм","100 м2 подливки под оборудование",0.04,null,null,null,null,0]
[null,"101-1805","Гвозди строительные","т","0,002\n0,0001",null,null,null,null,0]
[null,"102-0053","Доски обрезные хвойных пород длиной: 4-6,5 м, шириной 75-150 мм, толщиной 25 мм, III сорта","м3","0,1\n0,004",null,null,null,null,0]
[null,"102-0061","Доски обрезные хвойных пород длиной: 4-6,5 м, шириной 75-150 мм, толщиной 44 мм и более, III сорта","м3","0,04\n0,0016",null,null,null,null,0]
["15","Прайс","Бетон тяжелый, класс: В30 (М400) W6","м3",8.1600000000000006E-2,null,null,null,null,0]
["16","ТЕР06-01-013-02","На каждые 10 мм изменения толщины добавлять или исключать к расценке 06-01-013-01 (до 80 мм)","100 м2 подливки под оборудование",0.04,null,null,null,null,0]
[null,"101-1805","Гвозди строительные","т","0,006\n0,0002",null,null,null,null,0]
[null,"102-0053","Доски обрезные хвойных пород длиной: 4-6,5 м, шириной 75-150 мм, толщиной 25 мм, III сорта","м3","0,12\n0,0048",null,null,null,null,0]
[null,"102-0061","Доски обрезные хвойных пород длиной: 4-6,5 м, шириной 75-150 мм, толщиной 44 мм и более, III сорта","м3","0,06\n0,0024",null,null,null,null,0]
["17","Прайс","Бетон тяжелый, класс: В30 (М400) W6","м3",0.24479999999999999,null,null,null,null,0]
["18","ТЕР06-01-001-22","Устройство ленточных фундаментов: железобетонных при ширине по верху до 1000 мм","100 м3 бетона, бутобетона и железобетона в деле",2.4300000000000002,null,null,null,null,0]
[null,"101-0797","Проволока горячекатаная в мотках, диаметром 6,3-6,5 мм","т","0,0303\n0,0736",null,null,null,null,0]
[null,"101-1513","Электроды диаметром: 4 мм Э42","т","0,13\n0,3159",null,null,null,null,0]
[null,"101-1668","Рогожа","м2","88,2\n214,3",null,null,null,null,0]
[null,"101-1805","Гвозди строительные","т","0,013\n0,0316",null,null,null,null,0]
[null,"102-0053","Доски обрезные хвойных пород длиной: 4-6,5 м, шириной 75-150 мм, толщиной 25 мм, III сорта","м3","0,14\n0,3402",null,null,null,null,0]
[null,"102-0061","Доски обрезные хвойных пород длиной: 4-6,5 м, шириной 75-150 мм, толщиной 44 мм и более, III сорта","м3","0,47\n1,142",null,null,null,null,0]
[null,"203-0511","Щиты: из досок толщиной 25 мм","м2","39,2\n95,26",null,null,null,null,0]
[null,"405-0253","Известь строительная: негашеная комовая, сорт I","т","0,025\n0,0608",null,null,null,null,0]
[null,"411-0001","Вода","м3","0,283\n0,6877",null,null,null,null,0]
["19","ТСЭМ-110053","Автобетоносмесители: 4 м3","маш.-ч",34.267499999999998,null,null,null,null,0]
["20","Прайс","Бетон тяжелый, класс: В30 (М400) W8","м3",246.64500000000001,null,null,null,null,0]
["21","Прайс","Горячекатанная арматурная сталь класса А500 С, диаметром: 12 мм","т",7.6692400000000003,null,null,null,null,0]
["22","Прайс","Горячекатанная арматурная сталь класса А500 С, диаметром: 25 мм","т",2.7916799999999999,null,null,null,null,0]
["23","Прайс","Горячекатанная арматурная сталь класса А500 С, диаметром: 16 мм","т",12.803319999999999,null,null,null,null,0]
["24","Прайс","Горячекатанная арматурная сталь класса А500 С, диаметром: 20 мм","т",1.8348599999999999,null,null,null,null,0]
["25","Прайс","Горячекатаная арматурная сталь гладкая класса А-I, диаметром: 10 мм","т",1.2345999999999999,null,null,null,null,0]
["26","Прайс","Горячекатаная арматурная сталь гладкая класса А-I, диаметром: 6 мм","т",0.29260000000000003,null,null,null,null,0]
["27","ТССЦ-204-0041","Надбавки к ценам заготовок за сборку и сварку каркасов и сеток: плоских, диаметром 25-28 мм","т",2.7916799999999999,null,null,null,null,0]
["28","ТССЦ-204-0040","Надбавки к ценам заготовок за сборку и сварку каркасов и сеток: плоских, диаметром 20-22 мм","т",1.8348599999999999,null,null,null,null,0]
["29","ТССЦ-204-0039","Надбавки к ценам заготовок за сборку и сварку каркасов и сеток: плоских, диаметром 16-18 мм","т",3.9268800000000001,null,null,null,null,0]
["30","ТССЦ-204-0037","Надбавки к ценам заготовок за сборку и сварку каркасов и сеток: плоских, диаметром 12 мм","т",0.15429999999999999,null,null,null,null,0]
["31","ТССЦ-204-0036","Надбавки к ценам заготовок за сборку и сварку каркасов и сеток: плоских, диаметром 10 мм","т",0.32472000000000001,null,null,null,null,0]
["32","ТССЦ-204-0034","Надбавки к ценам заготовок за сборку и сварку каркасов и сеток: плоских, диаметром 5-6 мм","т",0.29260000000000003,null,null,null,null,0]
["33","ТССЦ-204-0048","Надбавки к ценам заготовок за сборку и сварку каркасов и сеток: пространственных, диаметром 10 мм","т",0.90988000000000002,null,null,null,null,0]
["34","ТЕР26-01-041-01","Изоляция изделиями из пенопласта на битуме холодных поверхностей: стен и колонн прямоугольных","1 м3 изоляции",0.4,null,null,null,null,0]
[null,"101-0079","Битумы нефтяные строительные для кровельных мастик марки: БНМ-55/60","т","0,07\n0,028",null,null,null,null,0]
[null,"101-1805","Гвозди строительные","т","0,0039\n0,0016",null,null,null,null,0]
[null,"101-2066","Болты анкерные оцинкованные","кг","2\n0,8",null,null,null,null,0]
[null,"102-0025","Бруски обрезные хвойных пород длиной: 4-6,5 м, шириной 75-150 мм, толщиной 40-75 мм, III сорта","м3","0,05\n0,02",null,null,null,null,0]
["35","Прайс","Пенополистирол экструдированный ТЕХНОНИКОЛЬ т=50мм (вес 30кг/м3)","м3",0.39200000000000002,null,null,null,null,0]
["36","ТЕР10-01-012-04","Обшивка каркасных стен: досками под штукатурку// прим. футеровка стен досками","100 м2 обшивки стен (за вычетом проемов)",2.7879999999999998,null,null,null,null,0]
[null,"101-0181","Гвозди строительные с плоской головкой: 1,8х60 мм","т","0,006\n0,0167",null,null,null,null,0]
[null,"101-0195","Гвозди толевые круглые: 3,0х40 мм","т","0,0022\n0,0061",null,null,null,null,0]
[null,"101-0851","Пергамин кровельный марки: П-350","м2","105\n292,7",null,null,null,null,{"$f":"G79+I79","v":0}]
[null,"102-0069","Доски необрезные хвойных пород длиной: 4-6,5 м, все ширины, толщиной 19-22 мм, III сорта","м3","2\n5,576",null,null,null,null,0]
["Анкерные болты",null,null,null,null,null,null,null,null,0]
["37","ТЕР06-01-015-03","Установка анкерных болтов: при бетонировании со связями из арматуры","1 т",0.26400000000000001,null,null,null,null,0]
[null,"101-1513","Электроды диаметром: 4 мм Э42","т","0,002\n0,0005",null,null,null,null,0]
[null,"201-0798","Кондуктор инвентарный металлический","шт.","0,01\n0,0026",null,null,null,null,0]
[null,"204-0005","Горячекатаная арматурная сталь гладкая класса А-I, диаметром: 14 мм","т","0,09\n0,0238",null,null,null,null,0]
["38","ТЦ_01.7.15.01_78_7734683882 _24.06.2022_2","Болт 1.1 М24х1000","шт.",64,null,null,null,null,0]
["39","ТССЦ-101-2578","Болты с гайками и шайбами для санитарно-технических работ диаметром: 24 мм","т",9.9389999999999999E-3,null,null,null,null,0]
["Закладная деталь",null,null,null,null,null,null,null,null,0]
["40","ТЕРм38-01-006-08","Сборка с помощью лебедок ручных (с установкой и снятием их в процессе работы) или вручную (мелких деталей): стремянки, связи, кронштейны, тормозные конструкции и пр.","1 т конструкций",0.10128,null,null,null,null,0]
[null,"101-0324","Кислород технический: газообразный","м3","0,6\n0,0608",null,null,null,null,0]
[null,"101-1521","Электроды диаметром: 5 мм Э42","т","0,019\n0,0019",null,null,null,null,0]
[null,"101-2278","Пропан-бутан, смесь техническая","кг","0,2\n0,0203",null,null,null,null,0]
[null,"999-9950","Вспомогательные ненормируемые ресурсы (2% от Оплаты труда рабочих)","руб","46,36\n4,695",null,null,null,null,0]
["41","ТЕР06-01-092-11","Установка закладных деталей при массе элементов: до 5 кг","1 т арматуры, закладных деталей",0.10128,null,null,null,null,0]
[null,"101-0816","Проволока светлая диаметром: 1,1 мм","т","0,006\n0,0006",null,null,null,null,0]
["42","Прайс","Горячекатанная арматурная сталь класса А500 С, диаметром: 12 мм","т",2.5919999999999999E-2,null,null,null,null,0]
["43","Прайс","Прокат листовой 10мм","т",7.5359999999999996E-2,null,null,null,null,0]
["Антикоррозионная обработка деталей",null,null,null,null,null,null,null,null,0]
["44","ТЕР13-03-002-04","Огрунтовка металлических поверхностей за один раз: грунтовкой ГФ-021","100 м2 окрашиваемой поверхности",2.9371000000000001E-2,null,null,null,null,0]
[null,"113-0077","Ксилол нефтяной марки А","т","0,002\n0,0001",null,null,null,null,0]
["45","Прайс","Грунтовка: ГФ-021 красно-коричневая","кг",0.35245199999999999,null,null,null,null,0]
["За два раза ПЗ=2 (ОЗП=2; ЭМ=2 к расх.; ЗПМ=2; МАТ=2 к расх.; ТЗ=2; ТЗМ=2)",null,null,null,null,null,null,null,null,0]
["46","ТЕР13-03-004-26","Окраска металлических огрунтованных поверхностей: эмалью ПФ-115 (за 2 раза) К=2","100 м2 окрашиваемой поверхности",2.9371000000000001E-2,null,null,null,null,0]
[null,"101-1292","Уайт-спирит","т","0,0028\n0,0001",null,null,null,null,0]
["47","Прайс","Эмаль ПФ-115 серая","кг",1.116098,null,null,null,null,0]
["Раздел 3. Плита пола",null,null,null,null,null,null,null,null,0]
["48","ТЕР08-01-002-02","Устройство основания под фундаменты: щебеночного","1 м3 основания",111.4,null,null,null,null,0]
[null,"411-0001","Вода","м3","0,15\n16,71",null,null,null,null,0]
["49","ТССЦ-408-0015","Щебень из природного камня для строительных работ марка: 800, фракция 20-40 мм","м3",144.82,null,null,null,null,0]
["50","ТЕР06-01-001-01","Устройство бетонной подготовки","100 м3 бетона, бутобетона и железобетона в деле",0.51600000000000001,null,null,null,null,0]
[null,"101-1668","Рогожа","м2","250\n129",null,null,null,null,0]
[null,"411-0001","Вода","м3","0,2\n0,1032",null,null,null,null,0]
["51","ТСЭМ-110053","Автобетоносмесители: 4 м3","маш.-ч",6.4080000000000004,null,null,null,null,0]
["52","Прайс","Бетон тяжелый, класс: В7,5 (М100)","м3",52.631999999999998,null,null,null,null,0]
["53","ТЕР26-01-041-01","Изоляция изделиями из пенопласта на битуме холодных поверхностей: стен и колонн прямоугольных","1 м3 изоляции",1,null,null,null,null,0]
[null,"101-0079","Битумы нефтяные строительные для кровельных мастик марки: БНМ-55/60","т","0,07\n0,07",null,null,null,null,0]
[null,"101-1805","Гвозди строительные","т","0,0039\n0,0039",null,null,null,null,0]
[null,"101-2066","Болты анкерные оцинкованные","кг","2\n2",null,null,null,null,0]
[null,"102-0025","Бруски обрезные хвойных пород длиной: 4-6,5 м, шириной 75-150 мм, толщиной 40-75 мм, III сорта","м3","0,05\n0,05",null,null,null,null,0]
["54","Прайс","Пенополистирол экструдированный ТЕХНОНИКОЛЬ т=50мм (вес 30кг/м3)","м3",0.98,null,null,null,null,0]
["55","ТЕР06-01-001-16","Устройство фундаментных плит железобетонных: плоских","100 м3 бетона, бутобетона и железобетона в деле",1.0229999999999999,null,null,null,null,0]
[null,"101-0797","Проволока горячекатаная в мотках, диаметром 6,3-6,5 мм","т","0,0102\n0,0104",null,null,null,null,0]
[null,"101-1513","Электроды диаметром: 4 мм Э42","т","0,005\n0,0051",null,null,null,null,0]
[null,"101-1668","Рогожа","м2","30\n30,69",null,null,null,null,0]
[null,"101-1805","Гвозди строительные","т","0,002\n0,002",null,null,null,null,0]
[null,"102-0061","Доски обрезные хвойных пород длиной: 4-6,5 м, шириной 75-150 мм, толщиной 44 мм и более, III сорта","м3","0,04\n0,0409",null,null,null,null,0]
[null,"203-0512","Щиты: из досок толщиной 40 мм","м2","3,6\n3,683",null,null,null,null,0]
[null,"405-0253","Известь строительная: негашеная комовая, сорт I","т","0,01\n0,0102",null,null,null,null,0]
[null,"411-0001","Вода","м3","0,73\n0,7468",null,null,null,null,0]
["56","ТСЭМ-110053","Автобетоносмесители: 4 м3","маш.-ч",13.797000000000001,null,null,null,null,0]
["57","Прайс","Бетон тяжелый, класс: В30 (М400) W8","м3",103.83450000000001,null,null,null,null,0]
["58","Прайс","Горячекатанная арматурная сталь класса А500 С, диаметром: 12 мм","т",10.30626,null,null,null,null,0]
["59","Прайс","Горячекатаная арматурная сталь гладкая класса А-I, диаметром: 10 мм","т",0.43680000000000002,null,null,null,null,0]
["60","Прайс","Горячекатаная арматурная сталь гладкая класса А-I, диаметром: 20 мм","т",0.29759999999999998,null,null,null,null,0]
["61","ТССЦ-204-0037","Надбавки к ценам заготовок за сборку и сварку каркасов и сеток: плоских, диаметром 12 мм","т",1.10544,null,null,null,null,0]
["62","ТССЦ-204-0048","Надбавки к ценам заготовок за сборку и сварку каркасов и сеток: пространственных, диаметром 10 мм","т",0.43680000000000002,null,null,null,null,0]
["Раздел 4. Пандус и площадка",null,null,null,null,null,null,null,null,0]
["Пандус",null,null,null,null,null,null,null,null,0]
["63","ТЕР06-01-001-01","Устройство бетонной подготовки","100 м3 бетона, бутобетона и железобетона в деле",3.7199999999999997E-2,null,null,null,null,0]
[null,"101-1668","Рогожа","м2","250\n9,3",null,null,null,null,0]
[null,"411-0001","Вода","м3","0,2\n0,0074",null,null,null,null,0]
["64","ТСЭМ-110053","Автобетоносмесители: 4 м3","маш.-ч",0.46200000000000002,null,null,null,null,0]
["65","Прайс","Бетон тяжелый, класс: В7,5 (М100)","м3",3.7944,null,null,null,null,{"$f":"G143+I143","v":0}]
["66","ТЕР06-01-001-16","Устройство фундаментных плит железобетонных: плоских","100 м3 бетона, бутобетона и железобетона в деле",9.4600000000000004E-2,null,null,null,null,0]
[null,"101-0797","Проволока горячекатаная в мотках, диаметром 6,3-6,5 мм","т","0,0102\n0,001",null,null,null,null,0]
[null,"101-1513","Электроды диаметром: 4 мм Э42","т","0,005\n0,0005",null,null,null,null,0]
[null,"101-1668","Рогожа","м2","30\n2,838",null,null,null,null,0]
[null,"101-1805","Гвозди строительные","т","0,002\n0,0002",null,null,null,null,0]
[null,"102-0061","Доски обрезные хвойных пород длиной: 4-6,5 м, шириной 75-150 мм, толщиной 44 мм и более, III сорта","м3","0,04\n0,0038",null,null,null,null,0]
[null,"203-0512","Щиты: из досок толщиной 40 мм","м2","3,6\n0,3406",null,null,null,null,0]
[null,"405-0253","Известь строительная: негашеная комовая, сорт I","т","0,01\n0,0009",null,null,null,null,0]
[null,"411-0001","Вода","м3","0,73\n0,0691",null,null,null,null,0]
["67","ТСЭМ-110053","Автобетоносмесители: 4 м3","маш.-ч",1.278,null,null,null,null,0]
["68","Прайс","Бетон тяжелый, класс: В30 (М400) W8","м3",9.6019000000000005,null,null,null,null,0]
["69","Прайс","Горячекатанная арматурная сталь класса А500 С, диаметром: 12 мм","т",1.3727199999999999,null,null,null,null,0]
["Площадка",null,null,null,null,null,null,null,null,0]
["70","ТЕР06-01-001-01","Устройство бетонной подготовки","100 м3 бетона, бутобетона и железобетона в деле",3.2000000000000002E-3,null,null,null,null,0]
[null,"101-1668","Рогожа","м2","250\n0,8",null,null,null,null,0]
[null,"411-0001","Вода","м3","0,2\n0,0006",null,null,null,null,0]
["71","ТСЭМ-110053","Автобетоносмесители: 4 м3","маш.-ч",4.2000000000000003E-2,null,null,null,null,0]
["72","Прайс","Бетон тяжелый, класс: В7,5 (М100)","м3",0.32640000000000002,null,null,null,null,0]
["73","ТЕР06-01-001-16","Устройство фундаментных плит железобетонных: плоских","100 м3 бетона, бутобетона и железобетона в деле",9.4600000000000004E-2,null,null,null,null,0]
[null,"101-0797","Проволока горячекатаная в мотках, диаметром 6,3-6,5 мм","т","0,0102\n0,001",null,null,null,null,0]
[null,"101-1513","Электроды диаметром: 4 мм Э42","т","0,005\n0,0005",null,null,null,null,0]
[null,"101-1668","Рогожа","м2","30\n2,838",null,null,null,null,0]
[null,"101-1805","Гвозди строительные","т","0,002\n0,0002",null,null,null,null,0]
[null,"102-0061","Доски обрезные хвойных пород длиной: 4-6,5 м, шириной 75-150 мм, толщиной 44 мм и более, III сорта","м3","0,04\n0,0038",null,null,null,null,0]
[null,"203-0512","Щиты: из досок толщиной 40 мм","м2","3,6\n0,3406",null,null,null,null,0]
[null,"405-0253","Известь строительная: негашеная комовая, сорт I","т","0,01\n0,0009",null,null,null,null,0]
[null,"411-0001","Вода","м3","0,73\n0,0691",null,null,null,null,0]
["74","ТСЭМ-110053","Автобетоносмесители: 4 м3","маш.-ч",1.278,null,null,null,null,0]
["75","Прайс","Бетон тяжелый, класс: В30 (М400) W8","м3",9.6019000000000005,null,null,null,null,0]
["76","Прайс","Горячекатанная арматурная сталь класса А500 С, диаметром: 12 мм","т",0.10152,null,null,null,null,0]
["77","ТССЦ-204-0037","Надбавки к ценам заготовок за сборку и сварку каркасов и сеток: плоских, диаметром 12 мм","т",2.844E-2,null,null,null,null,0]
["Раздел 5. Гидроизоляционные работы",null,null,null,null,null,null,null,null,0]
["78","ТЕР08-01-003-07","Гидроизоляция боковая обмазочная битумная в 2 слоя по выровненной поверхности бутовой кладки, кирпичу, бетону","100 м2 изолируемой поверхности",4.8479999999999999,null,null,null,null,0]
[null,"101-0073","Битумы нефтяные строительные марки: БН-90/10","т","0,016\n0,0776",null,null,null,null,0]
[null,"101-0322","Керосин для технических целей марок КТ-1, КТ-2","т","0,024\n0,1164",null,null,null,null,0]
[null,"101-0594","Мастика битумная кровельная горячая","т","0,24\n1,164",null,null,null,null,0]
[null,"101-1757","Ветошь","кг","0,1\n0,4848",null,null,null,null,0]
["79","ТЕР13-03-003-14","Окраска огрунтованных бетонных и оштукатуренных поверхностей: лаком ХП-734","100 м2 окрашиваемой поверхности",1.92,null,null,null,null,0]
[null,"113-0077","Ксилол нефтяной марки А","т","0,005\n0,0096",null,null,null,null,0]
[null,"113-0086","Лак ХП-734, марки А, сорт I","т","0,032\n0,0614",null,null,null,null,0]
["80","ТЕР13-03-003-15","Окраска огрунтованных бетонных и оштукатуренных поверхностей: эмалью ХП-799","100 м2 окрашиваемой поверхности",1.92,null,null,null,null,0]
[null,"113-0077","Ксилол нефтяной марки А","т","0,004\n0,0077",null,null,null,null,0]
[null,"113-0249","Эмаль ХП-799","т","0,029\n0,0557",null,null,null,null,0]
["Раздел 6. Доставка материалов на объект",null,null,null,null,null,null,null,null,0]
["Перевозка материалов ( металл 140 км. ОП \"МКМ-СПб\")",null,null,null,null,null,null,null,null,0]
["81",null,"Металлопрокат, трубопрокат и металлоконструкции","т",0.34929900000000003,null,null,null,null,0]
["82","ТССЦпг-03-02-01-140","Перевозка строительных грузов (кроме массовых навалочных, перевозимых автомобилями-самосвалами, а также бетонных и железобетонных изделий, стеновых и перегородочных материалов, лесоматериалов круглых и пиломатериалов, включенных в таблицу 03-01), бортовым автомобилем грузоподъемностью 5 т, на расстояние до 140 км I класс груза","1 т груза",0.34929900000000003,null,null,null,null,0]
["84","ТССЦпг-01-01-02-015","Разгрузочные работы при автомобильных перевозках: металлических конструкций массой до 1 т","1 т груза",0.34929900000000003,null,null,null,null,0]
[null,null,"Всего, руб. с НДС",null,null,null,{"$f":"SUM(G14:G191)","v":0},null,{"$f":"SUM(I14:I191)","v":0},{"$f":"SUM(J14:J191)","v":0}]
[null,null,"Всего, руб. без НДС",null,null,null,{"$f":"G192/1.2","v":0},null,{"$f":"I192/1.2","v":0},{"$f":"J192/1.2","v":0}]

{"sheet":"1632-2021-3.4-КМ ","index":2,"n_rows":233,"n_cols":42,"rows_kept":233,"cut":false,"hidden":false,"merged":[[1,0,1,9],[2,0,2,9],[7,0,7,9],[8,2,8,6],[6,0,6,9],[4,0,4,9],[5,0,5,9]]}
[]
["Терминал по перевалке минеральных удобрений в морском торговом порту Усть-Луга. Береговые объекты терминала",null,null,null,null,null,null,null,null,null,"","","","","","","","","","","",""]
["(наименование стройки)"]
[]
["ЛОКАЛЬНАЯ СМЕТА № 1632-2021-3.4-КМ_01.05.060-П-01-04"]
["(локальная смета)"]
["на Конструкции металлические, 07.06.060 Ангар для хранения ТМЦ (код SAP 01.05.019) код ГП 3.4",null,null,null,null,null,null,null,null,null,null,null,null,null,null,null,null,null,null,null,null,null,"на Конструкции металлические, 07.06.060 Ангар для хранения ТМЦ (код SAP 01.05.019) код ГП 3.4","","","","","","","","","","","","","",""]
["(наименование работ и затрат, наименование объекта)"]
[null,"Основание:","1632-2021-3.4-КМ_0_D_RU_IFR",null,null,null,null,null,null,null,null,null,null,null,null,null,null,null,null,null,null,null,null,null,null,null,null,null,null,null,null,null,null,null,null,null,null,"1632-2021-3.4-КМ_0_D_RU_IFR","","","",""]
[]
["№ п/п","Обоснование","Наименование работ и затрат","Ед. изм.","Кол-во","Цена за ед.измерения работ, руб. с НДС","Всего, стоимость работ,руб. с НДС","Цена за ед.измерения материалов, руб. с НДС","Всего, стоимость материалов, руб. с НДС","Итого, руб. с НДС"]
["1","2","3","4","5",6,7,8,9,10]
["Раздел 1. Колонны"]
["1","ТЕР09-03-002-01","Монтаж колонн одноэтажных и многоэтажных зданий и крановых эстакад высотой: до 25 м цельного сечения массой до 1,0 т","1 т конструкций",4.6813500000000001,null,null,null,null,{"$f":"G14+I14","v":0}]
[null,"101-0309","Канаты пеньковые пропитанные","т","0,0001\n0,0005",null,null,null,null,0]
[null,"101-0324","Кислород технический: газообразный","м3","0,7\n3,277",null,null,null,null,0]
[null,"101-0797","Проволока горячекатаная в мотках, диаметром 6,3-6,5 мм","т","0,00003\n0,0001",null,null,null,null,0]
[null,"101-1019","Швеллеры № 40 из стали марки: Ст0","т","0,00194\n0,0091",null,null,null,null,0]
[null,"101-1513","Электроды диаметром: 4 мм Э42","т","0,0004\n0,0019",null,null,null,null,0]
[null,"101-1714","Болты с гайками и шайбами строительные","т","0,00015\n0,0007",null,null,null,null,0]
[null,"101-1805","Гвозди строительные","т","0,00001\n0",null,null,null,null,0]
[null,"101-2278","Пропан-бутан, смесь техническая","кг","0,21\n0,9831",null,null,null,null,0]
[null,"101-2467","Растворитель марки: Р-4","т","0,0006\n0,0028",null,null,null,null,0]
[null,"102-0023","Бруски обрезные хвойных пород длиной: 4-6,5 м, шириной 75-150 мм, толщиной 40-75 мм, I сорта","м3","0,00103\n0,0048",null,null,null,null,0]
[null,"113-0021","Грунтовка: ГФ-021 красно-коричневая","т","0,00031\n0,0015",null,null,null,null,0]
[null,"201-0756","Отдельные конструктивные элементы зданий и сооружений с преобладанием: горячекатаных профилей, средняя масса сборочной единицы от 0,1 до 0,5 т","т","0,0004\n0,0019",null,null,null,null,0]
[null,"508-0097","Канат двойной свивки типа ТК, конструкции 6х19(1+6+12)+1 о.с., оцинкованный из проволок марки В, маркировочная группа: 1770 н/мм2, диаметром 5,5 мм","10 м","0,0187\n0,0875",null,null,null,null,0]
["2","ТЕРм38-01-002-03","Монорельсы, балки и другие аналогичные конструкции промышленных зданий, сборка с помощью: лебедок электрических (с установкой и снятием их в процессе работы)","1 т конструкций",4.6813500000000001,null,null,null,null,0]
[null,"101-0324","Кислород технический: газообразный","м3","0,6\n2,809",null,null,null,null,0]
[null,"101-1521","Электроды диаметром: 5 мм Э42","т","0,0032\n0,015",null,null,null,null,0]
[null,"101-2278","Пропан-бутан, смесь техническая","кг","0,2\n0,9363",null,null,null,null,0]
[null,"999-9950","Вспомогательные ненормируемые ресурсы (2% от Оплаты труда рабочих)","руб","10,14\n47,47",null,null,null,null,0]
["3","Прайс","Профиль гн. 180*6","т",2.4967199999999998,null,null,null,null,0]
["4","Прайс","Уголок не равнополочный 160*100*12","т",0.10403,null,null,null,null,0]
["5","Прайс","Уголок не равнополочный 140*90*8","т",0.20805999999999999,null,null,null,null,0]
["6","Прайс","Уголок не равнополочный 100*63*8 (прим. 100*63*6)","т",0.10403,null,null,null,null,0]
["7","Прайс","Прокат листовой 20мм","т",0.10403,null,null,null,null,0]
["8","Прайс","Прокат листовой 16мм","т",0.41611999999999999,null,null,null,null,0]
["9","Прайс","Прокат листовой 10мм","т",0.41611999999999999,null,null,null,null,0]
["Перевозка материалов ( металл 140 км. ОП \"МКМ-СПб\")",null,null,null,null,null,null,null,null,0]
["10",null,"металлопрокат, трубопрокат и металлоконструкции","т",4.6813500000000001,null,null,null,null,0]
["11","ТССЦпг-03-02-01-140","Перевозка строительных грузов (кроме массовых навалочных, перевозимых автомобилями-самосвалами, а также бетонных и железобетонных изделий, стеновых и перегородочных материалов, лесоматериалов круглых и пиломатериалов, включенных в таблицу 03-01), бортовым автомобилем грузоподъемностью 5 т, на расстояние до 140 км I класс груза","1 т груза",4.6813500000000001,null,null,null,null,0]
["12","ТССЦпг-01-01-02-015","Разгрузочные работы при автомобильных перевозках: металлических конструкций массой до 1 т","1 т груза",4.6813500000000001,null,null,null,null,0]
["Раздел 2. Фермы",null,null,null,null,null,null,null,null,0]
["13","ТЕР09-03-012-01","Монтаж стропильных и подстропильных ферм на высоте до 25 м пролетом: до 24 м массой до 3,0 т","1 т конструкций",6.3458300000000003,null,null,null,null,0]
[null,"101-0309","Канаты пеньковые пропитанные","т","0,0001\n0,0006",null,null,null,null,0]
[null,"101-0324","Кислород технический: газообразный","м3","0,72\n4,569",null,null,null,null,0]
[null,"101-0797","Проволока горячекатаная в мотках, диаметром 6,3-6,5 мм","т","0,00003\n0,0002",null,null,null,null,0]
[null,"101-1019","Швеллеры № 40 из стали марки: Ст0","т","0,00194\n0,0123",null,null,null,null,0]
[null,"101-1513","Электроды диаметром: 4 мм Э42","т","0,0027\n0,0171",null,null,null,null,0]
[null,"101-1714","Болты с гайками и шайбами строительные","т","0,0019\n0,0121",null,null,null,null,0]
[null,"101-1805","Гвозди строительные","т","0,00001\n0,0001",null,null,null,null,0]
[null,"101-2278","Пропан-бутан, смесь техническая","кг","0,22\n1,396",null,null,null,null,0]
[null,"101-2467","Растворитель марки: Р-4","т","0,0006\n0,0038",null,null,null,null,0]
[null,"102-0023","Бруски обрезные хвойных пород длиной: 4-6,5 м, шириной 75-150 мм, толщиной 40-75 мм, I сорта","м3","0,00103\n0,0065",null,null,null,null,0]
[null,"113-0021","Грунтовка: ГФ-021 красно-коричневая","т","0,00031\n0,002",null,null,null,null,0]
[null,"201-0756","Отдельные конструктивные элементы зданий и сооружений с преобладанием: горячекатаных профилей, средняя масса сборочной единицы от 0,1 до 0,5 т","т","0,002\n0,0127",null,null,null,null,0]
[null,"508-0097","Канат двойной свивки типа ТК, конструкции 6х19(1+6+12)+1 о.с., оцинкованный из проволок марки В, маркировочная группа: 1770 н/мм2, диаметром 5,5 мм","10 м","0,0187\n0,1187",null,null,null,null,0]
["14","ТЕРм38-01-003-03","Решетчатые конструкции (стойки, опоры, фермы и пр.), сборка с помощью: лебедок электрических (с установкой и снятием их в процессе работы)","1 т конструкций",6.3458300000000003,null,null,null,null,0]
[null,"101-0324","Кислород технический: газообразный","м3","2,6\n16,5",null,null,null,null,0]
[null,"101-1521","Электроды диаметром: 5 мм Э42","т","0,0215\n0,1364",null,null,null,null,0]
[null,"101-2278","Пропан-бутан, смесь техническая","кг","0,5\n3,173",null,null,null,null,0]
[null,"999-9950","Вспомогательные ненормируемые ресурсы (2% от Оплаты труда рабочих)","руб","42,32\n268,6",null,null,null,null,0]
["2 920,87 = 8 047,73 - 1,032 x 4 967,89",null,null,null,null,null,null,null,null,0]
["15","Прайс","Профиль гн. 140*6","т",3.5370200000000001,null,null,null,null,0]
["16","Прайс","Профиль гн. 120*5","т",0.62417999999999996,null,null,null,null,0]
["17","Прайс","Профиль гн. 100*5","т",1.45642,null,null,null,null,0]
["18","Прайс","Уголок не равнополочный 140*90*8","т",0.10403,null,null,null,null,0]
["19","Прайс","Уголок не равнополочный 100*63*8 (прим. 100*63*6)","т",0.20805999999999999,null,null,null,null,0]
["20","Прайс","Прокат листовой 16мм","т",0.31208999999999998,null,null,null,null,0]
["21","Прайс","Прокат листовой 10мм","т",0.10403,null,null,null,null,0]
["22","Прайс","Прокат листовой 4мм","т",0.10403,null,null,null,null,0]
["Перевозка материалов ( металл 140 км. ОП \"МКМ-СПб\")",null,null,null,null,null,null,null,null,0]
["23",null,"металлопрокат, трубопрокат и металлоконструкции","т",6.3458300000000003,null,null,null,null,0]
["24","ТССЦпг-03-02-01-140","Перевозка строительных грузов (кроме массовых навалочных, перевозимых автомобилями-самосвалами, а также бетонных и железобетонных изделий, стеновых и перегородочных материалов, лесоматериалов круглых и пиломатериалов, включенных в таблицу 03-01), бортовым автомобилем грузоподъемностью 5 т, на расстояние до 140 км I класс груза","1 т груза",6.3458300000000003,null,null,null,null,0]
["25","ТССЦпг-01-01-02-015","Разгрузочные работы при автомобильных перевозках: металлических конструкций массой до 1 т","1 т груза",6.3458300000000003,null,null,null,null,0]
["Раздел 3. Балки и прогоны",null,null,null,null,null,null,null,null,{"$f":"G77+I77","v":0}]
["26","ТЕР09-03-002-12","Монтаж балок, ригелей перекрытия, покрытия и под установку оборудования многоэтажных зданий при высоте здания: до 25 м","1 т конструкций",6.2417999999999996,null,null,null,null,0]
[null,"101-0309","Канаты пеньковые пропитанные","т","0,0001\n0,0006",null,null,null,null,0]
[null,"101-0324","Кислород технический: газообразный","м3","1,95\n12,17",null,null,null,null,0]
[null,"101-0797","Проволока горячекатаная в мотках, диаметром 6,3-6,5 мм","т","0,00003\n0,0002",null,null,null,null,0]
[null,"101-1019","Швеллеры № 40 из стали марки: Ст0","т","0,00194\n0,0121",null,null,null,null,0]
[null,"101-1513","Электроды диаметром: 4 мм Э42","т","0,0031\n0,0193",null,null,null,null,0]
[null,"101-1714","Болты с гайками и шайбами строительные","т","0,0031\n0,0193",null,null,null,null,0]
[null,"101-1805","Гвозди строительные","т","0,00001\n0,0001",null,null,null,null,0]
[null,"101-2278","Пропан-бутан, смесь техническая","кг","0,59\n3,683",null,null,null,null,0]
[null,"101-2467","Растворитель марки: Р-4","т","0,0006\n0,0037",null,null,null,null,0]
[null,"102-0023","Бруски обрезные хвойных пород длиной: 4-6,5 м, шириной 75-150 мм, толщиной 40-75 мм, I сорта","м3","0,00103\n0,0064",null,null,null,null,0]
[null,"113-0021","Грунтовка: ГФ-021 красно-коричневая","т","0,00031\n0,0019",null,null,null,null,0]
[null,"201-0756","Отдельные конструктивные элементы зданий и сооружений с преобладанием: горячекатаных профилей, средняя масса сборочной единицы от 0,1 до 0,5 т","т","0,0005\n0,0031",null,null,null,null,0]
[null,"508-0097","Канат двойной свивки типа ТК, конструкции 6х19(1+6+12)+1 о.с., оцинкованный из проволок марки В, маркировочная группа: 1770 н/мм2, диаметром 5,5 мм","10 м","0,0187\n0,1167",null,null,null,null,0]
["27","ТЕРм38-01-002-03","Монорельсы, балки и другие аналогичные конструкции промышленных зданий, сборка с помощью: лебедок электрических (с установкой и снятием их в процессе работы)","1 т конструкций",6.2417999999999996,null,null,null,null,0]
[null,"101-0324","Кислород технический: газообразный","м3","0,6\n3,745",null,null,null,null,0]
[null,"101-1521","Электроды диаметром: 5 мм Э42","т","0,0032\n0,02",null,null,null,null,0]
[null,"101-2278","Пропан-бутан, смесь техническая","кг","0,2\n1,248",null,null,null,null,0]
[null,"999-9950","Вспомогательные ненормируемые ресурсы (2% от Оплаты труда рабочих)","руб","10,14\n63,29",null,null,null,null,0]
["856,30 = 5 265,27 - 1,02 x 4 322,52",null,null,null,null,null,null,null,null,0]
["28","Прайс","Швеллер 20П","т",4.9934399999999997,null,null,null,null,0]
["29","Прайс","Двутавр 25Б1","т",1.0403,null,null,null,null,0]
["30","Прайс","Уголок не равнополочный 140*90*8","т",0.10403,null,null,null,null,0]
["31","Прайс","Прокат листовой 8мм","т",0.10403,null,null,null,null,0]
["Перевозка материалов ( металл 140 км. ОП \"МКМ-СПб\")",null,null,null,null,null,null,null,null,0]
["32",null,"металлопрокат, трубопрокат и металлоконструкции","т",6.2417999999999996,null,null,null,null,0]
["33","ТССЦпг-03-02-01-140","Перевозка строительных грузов (кроме массовых навалочных, перевозимых автомобилями-самосвалами, а также бетонных и железобетонных изделий, стеновых и перегородочных материалов, лесоматериалов круглых и пиломатериалов, включенных в таблицу 03-01), бортовым автомобилем грузоподъемностью 5 т, на расстояние до 140 км I класс груза","1 т груза",6.2417999999999996,null,null,null,null,0]
["34","ТССЦпг-01-01-02-015","Разгрузочные работы при автомобильных перевозках: металлических конструкций массой до 1 т","1 т груза",6.2417999999999996,null,null,null,null,0]
["Раздел 4. Связи и распорки",null,null,null,null,null,null,null,null,0]
["35","ТЕР09-03-014-01","Монтаж связей и распорок из одиночных и парных уголков, гнутосварных профилей для пролетов: до 24 м при высоте здания до  25 м","1 т конструкций",4.1612,null,null,null,null,0]
[null,"101-0309","Канаты пеньковые пропитанные","т","0,0001\n0,0004",null,null,null,null,0]
[null,"101-0324","Кислород технический: газообразный","м3","1,2\n4,993",null,null,null,null,0]
[null,"101-0797","Проволока горячекатаная в мотках, диаметром 6,3-6,5 мм","т","0,00003\n0,0001",null,null,null,null,0]
[null,"101-1019","Швеллеры № 40 из стали марки: Ст0","т","0,00194\n0,0081",null,null,null,null,0]
[null,"101-1513","Электроды диаметром: 4 мм Э42","т","0,00044\n0,0018",null,null,null,null,0]
[null,"101-1714","Болты с гайками и шайбами строительные","т","0,021\n0,0874",null,null,null,null,0]
[null,"101-1805","Гвозди строительные","т","0,00001\n0",null,null,null,null,0]
[null,"101-2278","Пропан-бутан, смесь техническая","кг","0,36\n1,498",null,null,null,null,0]
[null,"101-2467","Растворитель марки: Р-4","т","0,0006\n0,0025",null,null,null,null,0]
[null,"102-0023","Бруски обрезные хвойных пород длиной: 4-6,5 м, шириной 75-150 мм, толщиной 40-75 мм, I сорта","м3","0,00103\n0,0043",null,null,null,null,0]
[null,"113-0021","Грунтовка: ГФ-021 красно-коричневая","т","0,00031\n0,0013",null,null,null,null,0]
[null,"201-0756","Отдельные конструктивные элементы зданий и сооружений с преобладанием: горячекатаных профилей, средняя масса сборочной единицы от 0,1 до 0,5 т","т","0,0002\n0,0008",null,null,null,null,0]
[null,"508-0097","Канат двойной свивки типа ТК, конструкции 6х19(1+6+12)+1 о.с., оцинкованный из проволок марки В, маркировочная группа: 1770 н/мм2, диаметром 5,5 мм","10 м","0,0187\n0,0778",null,null,null,null,0]
["36","ТЕРм38-01-003-03","Решетчатые конструкции (стойки, опоры, фермы и пр.), сборка с помощью: лебедок электрических (с установкой и снятием их в процессе работы)","1 т конструкций",4.1612,null,null,null,null,0]
[null,"101-0324","Кислород технический: газообразный","м3","2,6\n10,82",null,null,null,null,0]
[null,"101-1521","Электроды диаметром: 5 мм Э42","т","0,0215\n0,0895",null,null,null,null,0]
[null,"101-2278","Пропан-бутан, смесь техническая","кг","0,5\n2,081",null,null,null,null,0]
[null,"999-9950","Вспомогательные ненормируемые ресурсы (2% от Оплаты труда рабочих)","руб","42,32\n176,1",null,null,null,null,0]
["37","Прайс","Профиль гн. 120*5","т",0.93627000000000005,null,null,null,null,0]
["38","Прайс","Профиль гн. 100*5","т",3.0168699999999999,null,null,null,null,0]
["39","Прайс","Прокат листовой 8мм","т",0.10403,null,null,null,null,0]
["40","Прайс","Прокат листовой 4мм","т",0.10403,null,null,null,null,0]
["Перевозка материалов ( металл 140 км. ОП \"МКМ-СПб\")",null,null,null,null,null,null,null,null,0]
["41",null,"металлопрокат, трубопрокат и металлоконструкции","т",4.1612,null,null,null,null,0]
["42","ТССЦпг-03-02-01-140","Перевозка строительных грузов (кроме массовых навалочных, перевозимых автомобилями-самосвалами, а также бетонных и железобетонных изделий, стеновых и перегородочных материалов, лесоматериалов круглых и пиломатериалов, включенных в таблицу 03-01), бортовым автомобилем грузоподъемностью 5 т, на расстояние до 140 км I класс груза","1 т груза",4.1612,null,null,null,null,0]
["43","ТССЦпг-01-01-02-015","Разгрузочные работы при автомобильных перевозках: металлических конструкций массой до 1 т","1 т груза",4.1612,null,null,null,null,0]
["Итого по разделу 4 Связи и распорки",null,null,null,null,null,null,null,null,0]
["Раздел 5. Фахверк",null,null,null,null,null,null,null,null,0]
["Таб.9-43. Монтаж фахверка – 10 кг/т м/к",null,null,null,null,null,null,null,null,0]
["44","ТЕР09-04-006-01","Монтаж фахверка","1 т конструкций",8.4264299999999999,null,null,null,null,0]
[null,"101-0309","Канаты пеньковые пропитанные","т","0,0001\n0,0008",null,null,null,null,0]
[null,"101-0324","Кислород технический: газообразный","м3","2,6\n21,91",null,null,null,null,0]
[null,"101-0797","Проволока горячекатаная в мотках, диаметром 6,3-6,5 мм","т","0,00003\n0,0003",null,null,null,null,0]
[null,"101-1019","Швеллеры № 40 из стали марки: Ст0","т","0,00194\n0,0163",null,null,null,null,{"$f":"G141+I141","v":0}]
[null,"101-1515","Электроды диаметром: 4 мм Э46","т","0,016\n0,1348",null,null,null,null,0]
[null,"101-1805","Гвозди строительные","т","0,00001\n0,0001",null,null,null,null,0]
[null,"101-2278","Пропан-бутан, смесь техническая","кг","0,78\n6,573",null,null,null,null,0]
[null,"101-2467","Растворитель марки: Р-4","т","0,0006\n0,0051",null,null,null,null,0]
[null,"113-0021","Грунтовка: ГФ-021 красно-коричневая","т","0,00031\n0,0026",null,null,null,null,0]
[null,"201-0756","Отдельные конструктивные элементы зданий и сооружений с преобладанием: горячекатаных профилей, средняя масса сборочной единицы от 0,1 до 0,5 т","т","0,001\n0,0084",null,null,null,null,0]
[null,"508-0097","Канат двойной свивки типа ТК, конструкции 6х19(1+6+12)+1 о.с., оцинкованный из проволок марки В, маркировочная группа: 1770 н/мм2, диаметром 5,5 мм","10 м","0,0187\n0,1576",null,null,null,null,0]
["45","ТССЦ-110-0009","Болты сборочные с гайками и шайбами по классу прочности: 10.9","т",8.4264000000000006E-2,null,null,null,null,0]
["46","ТЕРм38-01-003-03","Решетчатые конструкции (стойки, опоры, фермы и пр.), сборка с помощью: лебедок электрических (с установкой и снятием их в процессе работы)","1 т конструкций",8.4264299999999999,null,null,null,null,0]
[null,"101-0324","Кислород технический: газообразный","м3","2,6\n21,91",null,null,null,null,0]
[null,"101-1521","Электроды диаметром: 5 мм Э42","т","0,0215\n0,1812",null,null,null,null,0]
[null,"101-2278","Пропан-бутан, смесь техническая","кг","0,5\n4,213",null,null,null,null,0]
[null,"999-9950","Вспомогательные ненормируемые ресурсы (2% от Оплаты труда рабочих)","руб","42,32\n356,6",null,null,null,null,0]
["47","Прайс","Профиль гн. 140*6","т",6.4498600000000001,null,null,null,null,0]
["48","Прайс","Швеллер  14П","т",0.52015,null,null,null,null,0]
["49","Прайс","Уголок не равнополочный 140*90*8","т",1.2483599999999999,null,null,null,null,0]
["50","Прайс","Прокат листовой 6мм","т",0.10403,null,null,null,null,0]
["51","Прайс","Прокат листовой 4мм","т",0.10403,null,null,null,null,0]
["Перевозка материалов ( металл 140 км. ОП \"МКМ-СПб\")",null,null,null,null,null,null,null,null,0]
["52",null,"металлопрокат, трубопрокат и металлоконструкции","т",8.4264299999999999,null,null,null,null,0]
["53","ТССЦпг-03-02-01-140","Перевозка строительных грузов (кроме массовых навалочных, перевозимых автомобилями-самосвалами, а также бетонных и железобетонных изделий, стеновых и перегородочных материалов, лесоматериалов круглых и пиломатериалов, включенных в таблицу 03-01), бортовым автомобилем грузоподъемностью 5 т, на расстояние до 140 км I класс груза","1 т груза",8.4264299999999999,null,null,null,null,0]
["54","ТССЦпг-01-01-02-015","Разгрузочные работы при автомобильных перевозках: металлических конструкций массой до 1 т","1 т груза",8.4264299999999999,null,null,null,null,0]
["Итого по разделу 5 Фахверк",null,null,null,null,null,null,null,null,0]
["Раздел 6. Профилированный настил",null,null,null,null,null,null,null,null,0]
["55","ТЕР09-04-006-02","Монтаж ограждающих конструкций стен: из профилированного листа при высоте здания до 30 м","100 м2",4.5,null,null,null,null,0]
[null,"101-0309","Канаты пеньковые пропитанные","т","0,00015\n0,0007",null,null,null,null,0]
[null,"101-0324","Кислород технический: газообразный","м3","2,98\n13,41",null,null,null,null,0]
[null,"101-0797","Проволока горячекатаная в мотках, диаметром 6,3-6,5 мм","т","0,00004\n0,0002",null,null,null,null,0]
[null,"101-1019","Швеллеры № 40 из стали марки: Ст0","т","0,00297\n0,0134",null,null,null,null,0]
[null,"101-1513","Электроды диаметром: 4 мм Э42","т","0,0034\n0,0153",null,null,null,null,0]
[null,"101-1714","Болты с гайками и шайбами строительные","т","0,007\n0,0315",null,null,null,null,0]
[null,"101-1805","Гвозди строительные","т","0,00002\n0,0001",null,null,null,null,0]
[null,"101-2278","Пропан-бутан, смесь техническая","кг","0,903\n4,064",null,null,null,null,0]
[null,"101-2467","Растворитель марки: Р-4","т","0,00009\n0,0004",null,null,null,null,0]
[null,"102-0023","Бруски обрезные хвойных пород длиной: 4-6,5 м, шириной 75-150 мм, толщиной 40-75 мм, I сорта","м3","0,0013\n0,0059",null,null,null,null,0]
[null,"113-0021","Грунтовка: ГФ-021 красно-коричневая","т","0,00047\n0,0021",null,null,null,null,0]
[null,"201-0756","Отдельные конструктивные элементы зданий и сооружений с преобладанием: горячекатаных профилей, средняя масса сборочной единицы от 0,1 до 0,5 т","т","0,019\n0,0855",null,null,null,null,0]
[null,"508-0097","Канат двойной свивки типа ТК, конструкции 6х19(1+6+12)+1 о.с., оцинкованный из проволок марки В, маркировочная группа: 1770 н/мм2, диаметром 5,5 мм","10 м","0,016\n0,072",null,null,null,null,0]
["56","ТССЦ-201-0382","Конструкции: стальные нащельников и деталей обрамления","т",0.2601,null,null,null,null,0]
["57","ТССЦ-101-1810","Винты самонарезающие: для крепления профилированного настила и панелей к несущим конструкциям","т",0.16200000000000001,null,null,null,null,0]
["58","Прайс","Профиль HC35-1000-0,7","т",3.774,null,null,null,null,0]
["59","ТЕР09-04-002-01","Монтаж кровельного покрытия: из профилированного листа при высоте здания до 25 м","100 м2 покрытия",5.4,null,null,null,null,0]
[null,"101-0309","Канаты пеньковые пропитанные","т","0,00015\n0,0008",null,null,null,null,0]
[null,"101-0324","Кислород технический: газообразный","м3","1,4\n7,56",null,null,null,null,0]
[null,"101-0797","Проволока горячекатаная в мотках, диаметром 6,3-6,5 мм","т","0,00004\n0,0002",null,null,null,null,0]
[null,"101-1019","Швеллеры № 40 из стали марки: Ст0","т","0,00297\n0,016",null,null,null,null,0]
[null,"101-1513","Электроды диаметром: 4 мм Э42","т","0,00061\n0,0033",null,null,null,null,0]
[null,"101-1714","Болты с гайками и шайбами строительные","т","0,0022\n0,0119",null,null,null,null,0]
[null,"101-2278","Пропан-бутан, смесь техническая","кг","0,42\n2,268",null,null,null,null,0]
[null,"101-2467","Растворитель марки: Р-4","т","0,00009\n0,0005",null,null,null,null,0]
[null,"102-0023","Бруски обрезные хвойных пород длиной: 4-6,5 м, шириной 75-150 мм, толщиной 40-75 мм, I сорта","м3","0,0013\n0,007",null,null,null,null,0]
[null,"113-0021","Грунтовка: ГФ-021 красно-коричневая","т","0,00047\n0,0025",null,null,null,null,0]
[null,"201-0756","Отдельные конструктивные элементы зданий и сооружений с преобладанием: горячекатаных профилей, средняя масса сборочной единицы от 0,1 до 0,5 т","т","0,011\n0,0594",null,null,null,null,0]
[null,"508-0097","Канат двойной свивки типа ТК, конструкции 6х19(1+6+12)+1 о.с., оцинкованный из проволок марки В, маркировочная группа: 1770 н/мм2, диаметром 5,5 мм","10 м","0,016\n0,0864",null,null,null,null,0]
["60","Прайс","Профиль H57-750-0,8","т",6.5279999999999996,null,null,null,null,0]
["61","ТССЦ-101-1810","Винты самонарезающие: для крепления профилированного настила и панелей к несущим конструкциям","т",0.19439999999999999,null,null,null,null,0]
["Перевозка материалов ( металл 140 км. ОП \"МКМ-СПб\")",null,null,null,null,null,null,null,null,0]
["62",null,"металлопрокат, трубопрокат и металлоконструкции","т",10.6584,null,null,null,null,0]
["63","ТССЦпг-03-02-01-140","Перевозка строительных грузов (кроме массовых навалочных, перевозимых автомобилями-самосвалами, а также бетонных и железобетонных изделий, стеновых и перегородочных материалов, лесоматериалов круглых и пиломатериалов, включенных в таблицу 03-01), бортовым автомобилем грузоподъемностью 5 т, на расстояние до 140 км I класс груза","1 т груза",10.6584,null,null,null,null,0]
["64","ТССЦпг-01-01-02-015","Разгрузочные работы при автомобильных перевозках: металлических конструкций массой до 1 т","1 т груза",10.6584,null,null,null,null,0]
["Итого по разделу 6 Профилированный настил",null,null,null,null,null,null,null,null,0]
["Раздел 7. Конструкции под вент. оборудование",null,null,null,null,null,null,null,null,0]
["65","ТЕРм08-01-087-03","Металлические конструкции","1 т",0.31208999999999998,null,null,null,null,0]
[null,"101-1306","Портландцемент общестроительного назначения бездобавочный, марки: 500","т","0,18\n0,0562",null,null,null,null,{"$f":"G205+I205","v":0}]
[null,"101-1728","Дюбели распорные с гайкой","100 шт.","0,8\n0,2497",null,null,null,null,0]
[null,"101-1924","Электроды диаметром: 4 мм Э42А","кг","4,2\n1,311",null,null,null,null,0]
[null,"101-1977","Болты с гайками и шайбами строительные","кг","27\n8,426",null,null,null,null,0]
[null,"408-0141","Песок природный для строительных: растворов средний","м3","0,15\n0,0468",null,null,null,null,0]
[null,"999-9950","Вспомогательные ненормируемые ресурсы (2% от Оплаты труда рабочих)","руб","22,69\n7,081",null,null,null,null,0]
["66","ТЕРм38-01-004-05","Сборка с помощью лебедок электрических (с установкой и снятием их в процессе работы): площадки для обслуживания оборудования и трубопроводов","1 т конструкций",0.31208999999999998,null,null,null,null,0]
[null,"101-0324","Кислород технический: газообразный","м3","0,9\n0,2809",null,null,null,null,0]
[null,"101-1521","Электроды диаметром: 5 мм Э42","т","0,0179\n0,0056",null,null,null,null,0]
[null,"101-2278","Пропан-бутан, смесь техническая","кг","0,2\n0,0624",null,null,null,null,0]
[null,"999-9950","Вспомогательные ненормируемые ресурсы (2% от Оплаты труда рабочих)","руб","42,08\n13,13",null,null,null,null,0]
["67","Прайс","Уголок не равнополочный 100*63*8 (прим. 100*63*6)","т",0.10403,null,null,null,null,0]
["68","Прайс","Прокат листовой 6мм","т",0.10403,null,null,null,null,0]
["69","Прайс","Прокат листовой 4мм","т",0.10403,null,null,null,null,0]
["Перевозка материалов ( металл 140 км. ОП \"МКМ-СПб\")",null,null,null,null,null,null,null,null,0]
["70",null,"металлопрокат, трубопрокат и металлоконструкции","т",0.31208999999999998,null,null,null,null,0]
["71","ТССЦпг-03-02-01-140","Перевозка строительных грузов (кроме массовых навалочных, перевозимых автомобилями-самосвалами, а также бетонных и железобетонных изделий, стеновых и перегородочных материалов, лесоматериалов круглых и пиломатериалов, включенных в таблицу 03-01), бортовым автомобилем грузоподъемностью 5 т, на расстояние до 140 км I класс груза","1 т груза",0.31208999999999998,null,null,null,null,0]
["72","ТССЦпг-01-01-02-015","Разгрузочные работы при автомобильных перевозках: металлических конструкций массой до 1 т","1 т груза",0.31208999999999998,null,null,null,null,0]
["Итого по разделу 7 Конструкции под вент. оборудование",null,null,null,null,null,null,null,null,0]
["Раздел 8. Антикоррозионная обработка",null,null,null,null,null,null,null,null,0]
["73","ТЕР13-03-002-04","Огрунтовка металлических поверхностей за один раз: грунтовкой ГФ-021","100 м2 окрашиваемой поверхности",7.7759999999999998,null,null,null,null,0]
[null,"113-0077","Ксилол нефтяной марки А","т","0,002\n0,0156",null,null,null,null,0]
["74","Прайс","Грунтовка: ГФ-021 красно-коричневая","кг",93.311999999999998,null,null,null,null,0]
["75","ТЕР13-03-004-26","Окраска металлических огрунтованных поверхностей: эмалью ПФ-115 (за 2 раза) К=2","100 м2 окрашиваемой поверхности",7.7759999999999998,null,null,null,null,0]
[null,"101-1292","Уайт-спирит","т","0,0028\n0,0218",null,null,null,null,0]
["За два раза ПЗ=2 (ОЗП=2; ЭМ=2 к расх.; ЗПМ=2; МАТ=2 к расх.; ТЗ=2; ТЗМ=2)",null,null,null,null,null,null,null,null,0]
["76","Прайс","Эмаль ПФ-115 серая","кг",295.488,null,null,null,null,0]
[null,null,"Всего, руб. с НДС",null,null,null,{"$f":"SUM(G14:G231)","v":0},null,{"$f":"SUM(I14:I231)","v":0},{"$f":"SUM(J14:J231)","v":0}]
[null,null,"Всего, руб. без НДС",null,null,null,{"$f":"G232/1.2","v":0},null,{"$f":"I232/1.2","v":0},{"$f":"J232/1.2","v":0}]

{"sheet":"1632-2021-3.4-АР ","index":3,"n_rows":142,"n_cols":50,"rows_kept":142,"cut":false,"hidden":false,"merged":[[1,0,1,8],[2,0,2,8],[8,2,8,6],[6,0,6,8],[4,0,4,8],[5,0,5,8],[7,0,7,8]]}
[]
["Терминал по перевалке минеральных удобрений в морском торговом порту Усть-Луга. Береговые объекты терминала",null,null,null,null,null,null,null,null,null,null,null,null,null,null,null,null,"","","","","","","","","","","","",""]
["(наименование стройки)"]
[]
["ЛОКАЛЬНАЯ СМЕТА № 1632-2021-3.4-АР_01.05.060-П-00-00"]
["(локальная смета)"]
["на Архитектурные решения, 07.06.060 Ангар для хранения ТМЦ (код SAP 01.05.019) код ГП 3.4",null,null,null,null,null,null,null,null,null,null,null,null,null,null,null,null,null,null,null,null,null,null,null,null,null,null,null,null,null,"на Архитектурные решения, 07.06.060 Ангар для хранения ТМЦ (код SAP 01.05.019) код ГП 3.4","","","","","","","","","","","","","",""]
["(наименование работ и затрат, наименование объекта)"]
[null,"Основание:","1632-2021-3.4-АР_0_0_RU_IFС",null,null,null,null,null,null,null,null,null,null,null,null,null,null,null,null,null,null,null,null,null,null,null,null,null,null,null,null,null,null,null,null,null,null,null,null,null,null,null,null,null,null,"1632-2021-3.4-АР_0_0_RU_IFС","","","",""]
["№ п/п","Обоснование","Наименование работ и затрат","Ед. изм.","Кол-во","Цена за ед.измерения работ, руб. с НДС","Всего, стоимость работ,руб. с НДС","Цена за ед.измерения материалов, руб. с НДС","Всего, стоимость материалов, руб. с НДС","Итого, руб. с НДС"]
[1,2,3,4,5,"6","7","8","9","10"]
["Раздел 1. Кровля"]
["Устройство кровли из профлиста см. в разделе КМ"]
["1","ТЕР12-01-009-02","Устройство желобов: подвесных","100 м желобов",0.61099999999999999,null,null,null,null,{"$f":"G14+I14","v":0}]
[null,"101-0173","Гвозди проволочные оцинкованные для асбестоцементной кровли: 4,5х120 мм","т","0,0038\n0,0023",null,null,null,null,{"$f":"G15+I15","v":0}]
[null,"101-0788","Поковки оцинкованные, масса: 2,825 кг","т","0,169\n0,1033",null,null,null,null,0]
["2","ТЦ_12.1.01.00_78_7804606806_25.01.2024_02","Желоб водосточный D185х3000","шт",20,null,null,null,null,0]
["3","ТЕР12-01-008-01","Устройство обделок на фасадах (наружные подоконники, пояски, балконы и др.): включая водосточные трубы, с изготовлением элементов труб// прим.","100 м2фасада (без вычета проемов)",6.9984000000000002,null,null,null,null,0]
[null,"101-0195","Гвозди толевые круглые: 3,0х40 мм","т","0,0014\n0,0098",null,null,null,null,0]
[null,"101-0788","Поковки оцинкованные, масса: 2,825 кг","т","0,0112\n0,0784",null,null,null,null,0]
[null,"101-0795","Проволока канатная оцинкованная, диаметром: 3 мм","т","0,0039\n0,0273",null,null,null,null,0]
["4","ТЕР12-01-008-02","Устройство обделок на фасадах (наружные подоконники, пояски, балконы и др.): без водосточных труб","100 м2фасада (без вычета проемов)",-6.9984000000000002,null,null,null,null,0]
[null,"101-0195","Гвозди толевые круглые: 3,0х40 мм","т","0,0014\n-0,0098",null,null,null,null,0]
["5","ТЦ_12.1.01.00_78_7804606806_25.01.2024_02","Труба водосточная D150х3000мм","шт",15,null,null,null,null,0]
["6","ТЦ_12.1.01.00_78_7804606806_25.01.2024_02","Воронки выпускные D185/150","шт",4,null,null,null,null,0]
["7","ТЕР12-01-012-01","Ограждение кровель перилами // прим.","100 м ограждения",0.61099999999999999,null,null,null,null,0]
[null,"101-1529","Электроды диаметром: 6 мм Э42","т","0,0005\n0,0003",null,null,null,null,0]
[null,"101-1851","Резина прессованная","кг","0,52\n0,3177",null,null,null,null,0]
["8","ТЦ_12.1.01.00_78_7804606806_25.01.2024_02","Снегозадержатель трубчатый (L=3 м. в комплекте с креплением)","шт",20,null,null,null,null,0]
["Раздел 2. Окна",null,null,null,null,null,null,null,null,0]
["9","ТЕР09-04-010-02","Монтаж витражей, витрин: с одинарным остеклением в одноэтажных зданиях","1 т конструкций",0.20899999999999999,null,null,null,null,0]
[null,"101-0309","Канаты пеньковые пропитанные","т","0,0001\n0",null,null,null,null,0]
[null,"101-0324","Кислород технический: газообразный","м3","1,95\n0,4076",null,null,null,null,0]
[null,"101-0797","Проволока горячекатаная в мотках, диаметром 6,3-6,5 мм","т","0,00003\n0",null,null,null,null,0]
[null,"101-1019","Швеллеры № 40 из стали марки: Ст0","т","0,00194\n0,0004",null,null,null,null,0]
[null,"101-1515","Электроды диаметром: 4 мм Э46","т","0,017\n0,0036",null,null,null,null,0]
[null,"101-1805","Гвозди строительные","т","0,00001\n0",null,null,null,null,0]
[null,"101-2278","Пропан-бутан, смесь техническая","кг","0,6\n0,1254",null,null,null,null,0]
[null,"101-2467","Растворитель марки: Р-4","т","0,0006\n0,0001",null,null,null,null,0]
[null,"102-0023","Бруски обрезные хвойных пород длиной: 4-6,5 м, шириной 75-150 мм, толщиной 40-75 мм, I сорта","м3","0,00103\n0,0002",null,null,null,null,0]
[null,"113-0021","Грунтовка: ГФ-021 красно-коричневая","т","0,00031\n0,0001",null,null,null,null,0]
[null,"508-0097","Канат двойной свивки типа ТК, конструкции 6х19(1+6+12)+1 о.с., оцинкованный из проволок марки В, маркировочная группа: 1770 н/мм2, диаметром 5,5 мм","10 м","0,0187\n0,0039",null,null,null,null,0]
["10","ТЦ_09.1.01.01_78_7820318146_25.01.2024_02","Витражи из алюминиевого комбинированного профиля","м2",38,null,null,null,null,0]
["Раздел 3. Дверные проемы и ворота",null,null,null,null,null,null,null,null,0]
["11","ТЕР09-04-012-01","Установка металлических дверных блоков в готовые проемы","1 м2 проема",3.69,null,null,null,null,0]
[null,"101-1513","Электроды диаметром: 4 мм Э42","т","0,0001\n0,0004",null,null,null,null,0]
[null,"101-1921","Пена монтажная: для герметизации стыков в баллончике емкостью 0,85 л","шт.","0,1\n0,369",null,null,null,null,0]
[null,"204-0062","Детали закладные и накладные изготовленные: без применения сварки, гнутья, сверления (пробивки) отверстий поставляемые отдельно","т","0,003\n0,0111",null,null,null,null,0]
["12","ТЦ_07.1.01.03_66_665801467545_25.01.2024_02","ДСН, Оп, Прг, Пр, Н, М2 (дверь стальная, наружная, однопольная, с порогом 50мм(h), правого открывания наружу, класс прочности - 2)  900х2050","шт",2,null,null,null,null,0]
["Ворота",null,null,null,null,null,null,null,null,0]
["13","ТЕР09-04-011-01","Монтаж каркасов ворот большепролетных зданий, ангаров и др. без механизмов открывания","1 т конструкций",0.73,null,null,null,null,0]
[null,"101-0309","Канаты пеньковые пропитанные","т","0,0001\n0,0001",null,null,null,null,0]
[null,"101-0324","Кислород технический: газообразный","м3","1,95\n1,424",null,null,null,null,0]
[null,"101-0797","Проволока горячекатаная в мотках, диаметром 6,3-6,5 мм","т","0,00003\n0",null,null,null,null,0]
[null,"101-1019","Швеллеры № 40 из стали марки: Ст0","т","0,00194\n0,0014",null,null,null,null,0]
[null,"101-1515","Электроды диаметром: 4 мм Э46","т","0,023\n0,0168",null,null,null,null,0]
[null,"101-1805","Гвозди строительные","т","0,00001\n0",null,null,null,null,0]
[null,"101-2278","Пропан-бутан, смесь техническая","кг","0,59\n0,4307",null,null,null,null,0]
[null,"101-2467","Растворитель марки: Р-4","т","0,0006\n0,0004",null,null,null,null,0]
[null,"102-0023","Бруски обрезные хвойных пород длиной: 4-6,5 м, шириной 75-150 мм, толщиной 40-75 мм, I сорта","м3","0,00103\n0,0008",null,null,null,null,0]
[null,"113-0021","Грунтовка: ГФ-021 красно-коричневая","т","0,00031\n0,0002",null,null,null,null,0]
[null,"201-0756","Отдельные конструктивные элементы зданий и сооружений с преобладанием: горячекатаных профилей, средняя масса сборочной единицы от 0,1 до 0,5 т","т","0,026\n0,019",null,null,null,null,0]
[null,"508-0097","Канат двойной свивки типа ТК, конструкции 6х19(1+6+12)+1 о.с., оцинкованный из проволок марки В, маркировочная группа: 1770 н/мм2, диаметром 5,5 мм","10 м","0,0187\n0,0137",null,null,null,null,0]
["14","ТЕРм11-05-001-01","Механизм исполнительный, масса: до 20 кг","1 шт.",2,null,null,null,null,0]
[null,"101-2039","Болты с гайками и шайбами оцинкованные, диаметр: 12 мм","кг","0,32\n0,64",null,null,null,null,0]
[null,"999-9950","Вспомогательные ненормируемые ресурсы (2% от Оплаты труда рабочих)","руб","0,19\n0,38",null,null,null,null,0]
["15","ТЦ_08.1.06.01_54_5404314837_28.06.2024_02","Ворота складчатые, металлические  5000х4500мм (вес 13,5 кг/м2)","шт",2,null,null,null,null,0]
["Раздел 4. Полы",null,null,null,null,null,null,null,null,0]
["16","ТЕР11-01-011-03","Устройство стяжек: бетонных толщиной 20 мм","100 м2 стяжки",5.6020000000000003,null,null,null,null,0]
[null,"411-0001","Вода","м3","3,5\n19,61",null,null,null,null,0]
["17","ТЕР11-01-011-04","Устройство стяжек: на каждые 5 мм изменения толщины стяжки добавлять или исключать к расценке 11-01-011-03 // до толщ. 30 мм","100 м2 стяжки",5.6020000000000003,null,null,null,null,0]
["18","ТЦ_59.1.04.01_78_4707009037_08.02.2024_02","Бетон  В30","м3",17.141999999999999,null,null,null,null,0]
["19","ТЕР11-01-020-03","Устройство покрытий поливинилацетатных: толщиной 3 мм // прим. покрытие полимерное","100 м2 покрытия",5.6020000000000003,null,null,null,null,0]
[null,"101-0430","Краски масляные и алкидные земляные, готовые к применению: сурик железный МА-15, ПФ-14","т","0,0002\n0,0011",null,null,null,null,0]
[null,"101-0433","Краски масляные и алкидные земляные, готовые к применению: охра МА-15","т","0,0068\n0,0381",null,null,null,null,0]
[null,"101-1305","Портландцемент общестроительного назначения бездобавочный, марки: 400","т","0,013\n0,0728",null,null,null,null,0]
[null,"101-1591","Смола каменноугольная для дорожного строительства","т","0,036\n0,2017",null,null,null,null,0]
[null,"101-2293","Кислота ортофосфорная: техническая, сорт I","т","0,0078\n0,0437",null,null,null,null,0]
[null,"101-2358","Дисперсия поливинилацетатная непластифицированная марки Д50Н","кг","219\n1227",null,null,null,null,{"$f":"G79+I79","v":0}]
[null,"113-0306","Маршалит","т","0,272\n1,524",null,null,null,null,0]
[null,"408-0122","Песок природный для строительных: работ средний","м3","0,0173\n0,0969",null,null,null,null,0]
[null,"411-0001","Вода","м3","0,135\n0,7563",null,null,null,null,0]
["20","ТЕР11-01-020-04","Устройство покрытий поливинилацетатных: на каждый 1 мм изменения толщины добавлять или исключать к расценке 11-01-020-03","100 м2 покрытия",5.6020000000000003,null,null,null,null,0]
[null,"101-0433","Краски масляные и алкидные земляные, готовые к применению: охра МА-15","т","0,0161\n0,0902",null,null,null,null,0]
[null,"101-1591","Смола каменноугольная для дорожного строительства","т","0,084\n0,4706",null,null,null,null,0]
[null,"101-2293","Кислота ортофосфорная: техническая, сорт I","т","0,0182\n0,102",null,null,null,null,0]
[null,"101-2358","Дисперсия поливинилацетатная непластифицированная марки Д50Н","кг","448\n2510",null,null,null,null,0]
[null,"113-0306","Маршалит","т","0,616\n3,451",null,null,null,null,0]
[null,"411-0001","Вода","м3","0,189\n1,059",null,null,null,null,0]
["Раздел 5. Отделка",null,null,null,null,null,null,null,null,0]
["Цоколь",null,null,null,null,null,null,null,null,0]
["21","ТЕР13-06-003-01","Очистка поверхности щетками","1 м2 очищаемой поверхности",57.6,null,null,null,null,0]
["22","ТЕР13-06-004-01","Обеспыливание поверхности","1 м2 обеспыливаемой поверхности",57.6,null,null,null,null,0]
["23","ТЕР13-03-003-14","Окраска огрунтованных бетонных и оштукатуренных поверхностей: лаком ХП-734","100 м2 окрашиваемой поверхности",0.57599999999999996,null,null,null,null,0]
[null,"113-0077","Ксилол нефтяной марки А","т","0,005\n0,0029",null,null,null,null,0]
[null,"113-0086","Лак ХП-734, марки А, сорт I","т","0,032\n0,0184",null,null,null,null,0]
["24","ТЕР13-03-003-15","Окраска огрунтованных бетонных и оштукатуренных поверхностей: эмалью ХП-799","100 м2 окрашиваемой поверхности",0.57599999999999996,null,null,null,null,0]
[null,"113-0077","Ксилол нефтяной марки А","т","0,004\n0,0023",null,null,null,null,0]
[null,"113-0249","Эмаль ХП-799","т","0,029\n0,0167",null,null,null,null,0]
["Окраска конструкций стен и потолков из профлиста, учтена в сметах к разделу КМ",null,null,null,null,null,null,null,null,0]
["Раздел 6. Отмостка",null,null,null,null,null,null,null,null,0]
["25","ТЕР27-04-001-04","Устройство подстилающих и выравнивающих слоев оснований: из щебня","100 м3 материала основания (в плотном теле)",8.6400000000000005E-2,null,null,null,null,0]
[null,"411-0001","Вода","м3","7\n0,6048",null,null,null,null,0]
["26","ТЦ_02.2.05.00_78_7811628889_18.07.2024_02","Щебень из природного камня для строительных работ марка: 800, фракция 20-40 мм","м3",10.8864,null,null,null,null,0]
["27","ТЕР27-04-001-01","Устройство подстилающих и выравнивающих слоев оснований: из песка","100 м3 материала основания (в плотном теле)",0.14399999999999999,null,null,null,null,0]
[null,"411-0001","Вода","м3","5\n0,72",null,null,null,null,0]
["28","ТЦ_02.3.01.00_77_7734465669_15.02.2024_02","Песок средний для строительных работ","м3",15.84,null,null,null,null,0]
["29","ТЕР06-01-013-01","Устройство подливки толщиной  20 мм // прим. бетонное основание","100 м2 подливки под оборудование",0.96,null,null,null,null,0]
[null,"101-1805","Гвозди строительные","т","0,002\n0,0019",null,null,null,null,0]
[null,"102-0053","Доски обрезные хвойных пород длиной: 4-6,5 м, шириной 75-150 мм, толщиной 25 мм, III сорта","м3","0,1\n0,096",null,null,null,null,0]
[null,"102-0061","Доски обрезные хвойных пород длиной: 4-6,5 м, шириной 75-150 мм, толщиной 44 мм и более, III сорта","м3","0,04\n0,0384",null,null,null,null,0]
["30","ТЕР06-01-013-02","На каждые 10 мм изменения толщины добавлять или исключать к расценке 06-01-013-01 // до 100 мм","100 м2 подливки под оборудование",0.96,null,null,null,null,0]
[null,"101-1805","Гвозди строительные","т","0,008\n0,0077",null,null,null,null,0]
[null,"102-0053","Доски обрезные хвойных пород длиной: 4-6,5 м, шириной 75-150 мм, толщиной 25 мм, III сорта","м3","0,16\n0,1536",null,null,null,null,0]
[null,"102-0061","Доски обрезные хвойных пород длиной: 4-6,5 м, шириной 75-150 мм, толщиной 44 мм и более, III сорта","м3","0,08\n0,0768",null,null,null,null,0]
["31","ТЦ_59.1.04.01_78_4707009037_08.02.2024_02","Бетон  В15","м3",9.7919999999999998,null,null,null,null,0]
["32","ТЕР06-01-015-10","Армирование подстилающих слоев и набетонок","1 т",0.33310000000000001,null,null,null,null,0]
[null,"101-0816","Проволока светлая диаметром: 1,1 мм","т","0,028\n0,0093",null,null,null,null,0]
["33","ТЦ_08.4.02.05_78_7816723705_16.02.2024_02","Сетка арм. 100х100 6Вр1","м2",96,null,null,null,null,0]
["34","ТЕР06-01-013-01","Устройство подливки толщиной  20 мм // прим. бетонное покрытие отмостки","100 м2 подливки под оборудование",0.96,null,null,null,null,0]
[null,"101-1805","Гвозди строительные","т","0,002\n0,0019",null,null,null,null,0]
[null,"102-0053","Доски обрезные хвойных пород длиной: 4-6,5 м, шириной 75-150 мм, толщиной 25 мм, III сорта","м3","0,1\n0,096",null,null,null,null,0]
[null,"102-0061","Доски обрезные хвойных пород длиной: 4-6,5 м, шириной 75-150 мм, толщиной 44 мм и более, III сорта","м3","0,04\n0,0384",null,null,null,null,0]
["35","ТЕР06-01-013-02","На каждые 10 мм изменения толщины добавлять или исключать к расценке 06-01-013-01 // до 50-110 мм","100 м2 подливки под оборудование",0.96,null,null,null,null,0]
[null,"101-1805","Гвозди строительные","т","0,006\n0,0058",null,null,null,null,0]
[null,"102-0053","Доски обрезные хвойных пород длиной: 4-6,5 м, шириной 75-150 мм, толщиной 25 мм, III сорта","м3","0,12\n0,1152",null,null,null,null,0]
[null,"102-0061","Доски обрезные хвойных пород длиной: 4-6,5 м, шириной 75-150 мм, толщиной 44 мм и более, III сорта","м3","0,06\n0,0576",null,null,null,null,0]
["36","ТЦ_59.1.04.01_78_4707009037_08.02.2024_02","Бетон  В15","м3",7.8339999999999996,null,null,null,null,0]
["37","ТЕР11-01-015-07","Шлифовка бетонных или металлоцементных покрытий","100 м2 покрытия",0.96,null,null,null,null,0]
[null,"101-2109","Карборунд","кг","2\n1,92",null,null,null,null,0]
[null,"411-0001","Вода","м3","2\n1,92",null,null,null,null,0]
["38","ТЕР11-01-015-08","Железнение цементных покрытий","100 м2 покрытия",0.96,null,null,null,null,0]
[null,"101-1305","Портландцемент общестроительного назначения бездобавочный, марки: 400","т","0,06\n0,0576",null,null,null,null,0]
[null,"411-0001","Вода","м3","0,2\n0,192",null,null,null,null,0]
["39","ТЕР27-02-010-02","Установка бортовых камней бетонных: при других видах покрытий","100 м бортового камня",0.96,null,null,null,null,0]
[null,"101-1805","Гвозди строительные","т","0,001\n0,001",null,null,null,null,0]
[null,"102-0038","Брусья необрезные хвойных пород длиной: 4-6,5 м, все ширины, толщиной 100, 125 мм, IV сорта","м3","0,17\n0,1632",null,null,null,null,0]
[null,"401-0006","Бетон тяжелый, класс: В15 (М200)","м3","5,9\n5,664",null,null,null,null,0]
[null,"402-0004","Раствор готовый кладочный цементный марки: 100","м3","0,06\n0,0576",null,null,null,null,0]
["40","ТЦ_04.13.00.00_78_7842083836_15.02.2024_02","Камни бортовые БР100.20.8","шт",96,null,null,null,null,0]
[null,null,"Всего, руб. с НДС",null,null,null,{"$f":"SUM(G12:G140)","v":0},null,{"$f":"SUM(I12:I140)","v":0},{"$f":"SUM(J12:J140)","v":0}]
[null,null,"Всего, руб. без НДС",null,null,null,{"$f":"G141/1.2","v":0},null,{"$f":"I141/1.2","v":0},{"$f":"J141/1.2","v":0}]